bitfinex/quotes_ETHUSD_20250425
["timestamp","ask_amount","ask_price","bid_price","bid_amount"]
[1745619356330,0.8241,1791.0,1790.7,0.62920016]
[1745619356549,1.39481002,1791.0,1790.7,0.62920016]
[1745619357053,1.39481002,1791.0,1790.3,3.0]
[1745619357054,1.39481002,1791.0,1790.5,0.62920016]
[1745619358321,0.8241,1791.0,1790.5,0.62920016]
[1745619359222,0.8241,1791.0,1790.6,0.7586]
[1745619359634,4.833,1791.1,1790.7,0.62920016]
[1745619361749,0.8053,1791.0,1790.5,0.62920016]
[1745619367951,0.8053,1791.0,1790.5,1.38540016]
[1745619368255,0.8053,1791.0,1790.5,1.82952464]
[1745619370235,0.8053,1791.0,1790.5,0.62920016]
[1745619371267,0.85530016,1791.0,1790.5,0.62920016]
[1745619371557,0.8053,1791.0,1790.5,0.62920016]
[1745619371852,0.7533,1790.8,1790.2,0.62920016]
[1745619372058,0.7533,1790.8,1790.2,1.1021156]
[1745619372448,0.7533,1790.8,1790.4,0.62920016]
[1745619374038,0.7533,1790.8,1790.4,3.62920016]
[1745619378270,0.8161,1791.0,1790.6,0.62920016]
[1745619378476,0.8161,1791.0,1790.7,0.7586]
[1745619378662,5.6451,1791.1,1790.7,0.7586]
[1745619379278,5.6451,1791.1,1790.8,0.62920016]
[1745619379437,0.8161,1791.1,1790.8,0.62920016]
[1745619380846,0.8161,1791.1,1790.6,3.62920016]
[1745619383575,0.8161,1791.1,1790.6,3.68503896]
[1745619384752,0.8161,1791.1,1790.8,0.62920016]
[1745619385745,0.7559,1791.3,1791.0,0.62920016]
[1745619386373,3.00594,1791.4,1791.0,1.38780016]
[1745619387377,3.00594,1791.4,1791.2,0.62920016]
[1745619388562,3.00594,1791.4,1791.2,1.38780016]
[1745619392046,3.00594,1791.4,1791.2,0.62920016]
[1745619392246,3.00594,1791.4,1791.2,1.06798018]
[1745619393884,3.00594,1791.4,1791.2,1.12379948]
[1745619394087,3.00594,1791.4,1791.2,1.06798018]
[1745619395499,3.00594,1791.4,1791.3,6.34113782]
[1745619395681,3.00594,1791.4,1791.3,0.7586]
[1745619395855,3.00594,1791.4,1791.3,1.4995308]
[1745619396595,3.00594,1791.4,1791.3,10.71126878]
[1745619396792,3.00594,1791.4,1791.3,10.08206862]
[1745619397158,3.00594,1791.4,1791.3,4.4995308]
[1745619400667,3.79994,1791.4,1791.3,3.0]
[1745619401074,3.79994,1791.4,1790.9,5.45820016]
[1745619401271,0.794,1791.3,1790.9,0.62920016]
[1745619402616,0.794,1791.2,1790.6,0.62920016]
[1745619402919,0.794,1791.1,1790.5,0.62920016]
[1745619406822,0.794,1791.1,1790.4,6.32124755]
[1745619406823,0.05000016,1791.0,1790.4,6.95044771]
[1745619406974,0.8033,1790.9,1790.4,0.92044771]
[1745619408511,0.85330016,1790.8,1790.2,0.62920016]
[1745619409175,0.8033,1790.8,1790.2,0.62920016]
[1745619413637,0.8146,1790.7,1790.2,0.62920016]
[1745619414731,0.8146,1790.6,1790.2,0.62920016]
[1745619424710,0.8146,1790.6,1790.3,3.0]
[1745619427348,0.86460016,1790.6,1790.3,3.0]
[1745619427534,0.8177,1790.4,1790.1,0.05]
[1745619427741,0.86770016,1790.4,1790.1,0.05]
[1745619428142,0.8177,1790.4,1790.1,0.05]
[1745619429441,4.87400016,1790.5,1790.1,0.05]
[1745619429442,0.05000016,1790.3,1790.1,0.05]
[1745619429646,0.8177,1790.2,1790.1,0.05]
[1745619431223,0.7558,1790.1,1789.1,0.67920016]
[1745619431428,0.7558,1789.9,1789.3,0.62920016]
[1745619431624,0.7558,1789.7,1789.3,0.62920016]
[1745619435641,0.7558,1789.7,1789.2,0.7861]
[1745619435841,0.80580016,1789.7,1789.1,0.67920016]
[1745619436156,0.7558,1789.5,1789.1,0.05]
[1745619436340,0.7558,1789.4,1789.1,0.05]
[1745619437529,4.825,1789.6,1789.2,0.62920016]
[1745619437530,0.7558,1789.6,1789.2,0.62920016]
[1745619437754,0.7558,1789.6,1789.4,0.62920016]
[1745619438838,0.7558,1790.0,1789.4,0.68507711]
[1745619439160,5.5818,1790.0,1789.6,0.62920016]
[1745619440069,6.0096761,1790.0,1789.6,0.62920016]
[1745619440370,5.5818,1790.0,1789.6,0.62920016]
[1745619444367,4.826,1790.0,1789.8,0.62920016]
[1745619444673,0.7665,1790.2,1789.6,1.41670016]
[1745619444970,1.32575,1790.2,1789.6,1.41670016]
[1745619445274,1.32575,1790.2,1789.6,4.41670016]
[1745619446162,1.37575016,1790.2,1789.6,4.41670016]
[1745619446666,1.32575,1790.2,1789.6,4.41670016]
[1745619446872,0.7665,1790.2,1789.6,4.41670016]
[1745619447772,0.7665,1790.2,1789.8,1.38890016]
[1745619449496,0.7572,1790.5,1790.1,0.7597]
[1745619450196,0.7572,1790.5,1790.2,0.62920016]
[1745619450368,5.5832,1790.6,1790.2,0.62920016]
[1745619450569,6.14152,1790.6,1790.2,0.62920016]
[1745619450766,5.6263,1790.9,1790.3,0.7864]
[1745619450995,0.8013,1790.9,1790.4,0.62920016]
[1745619451607,0.8013,1790.9,1790.6,0.62920016]
[1745619452578,0.8013,1790.9,1790.4,3.62920016]
[1745619453705,0.8013,1790.9,1790.4,4.62931854]
[1745619454406,0.8013,1790.9,1790.4,3.0]
[1745619457711,0.8013,1790.9,1790.5,0.7864]
[1745619457905,5.6263,1791.0,1790.5,0.84224115]
[1745619458108,4.825,1791.0,1790.5,1.47144131]
[1745619458407,4.825,1791.0,1790.6,0.7864]
[1745619458610,4.825,1791.0,1790.6,1.48644831]
[1745619459617,4.825,1791.0,1790.6,0.7864]
[1745619461620,4.821,1791.3,1790.8,0.7588]
[1745619478735,4.87100016,1791.3,1790.8,0.7588]
[1745619479141,4.821,1791.3,1790.8,0.7588]
[1745619479453,0.8328,1791.2,1790.7,0.62920016]
[1745619479756,0.8328,1791.2,1790.5,15.27070016]
[1745619479925,0.8328,1791.1,1790.6,1.52707002]
[1745619481751,0.8328,1791.1,1790.7,0.62920016]
[1745619481967,0.7873,1791.2,1790.8,0.7579]
[1745619484688,8.61124,1791.4,1790.9,0.68503064]
[1745619484974,8.61124,1791.4,1790.9,0.62920016]
[1745619485186,8.61124,1791.4,1790.9,1.32629775]
[1745619485352,8.61124,1791.4,1790.9,0.62920016]
[1745619485541,8.61124,1791.4,1790.8,0.7579]
[1745619485933,0.7728,1791.3,1790.7,3.62920016]
[1745619487565,0.7728,1791.3,1790.7,3.0]
[1745619488080,0.7728,1791.2,1790.7,3.0]
[1745619489262,0.7728,1791.2,1790.7,3.86405525]
[1745619489668,0.7728,1791.2,1790.7,3.0]
[1745619490192,0.7728,1791.2,1790.7,4.38200016]
[1745619495660,0.7728,1791.2,1790.9,0.62920016]
[1745619499494,3.82544,1791.4,1791.1,0.62920016]
[1745619499661,3.00594,1791.4,1791.1,3.62920016]
[1745619499862,3.00594,1791.4,1791.3,0.62920016]
[1745619500693,3.00594,1791.4,1791.2,1.74312018]
[1745619500908,3.00594,1791.4,1791.2,7.32577406]
[1745619501395,3.00594,1791.4,1791.2,1.74312018]
[1745619501898,3.00594,1791.4,1791.2,7.32587776]
[1745619502098,3.00594,1791.4,1791.3,0.73258778]
[1745619504801,3.00594,1791.4,1791.2,3.62920016]
[1745619505402,3.00594,1791.4,1791.2,9.21204611]
[1745619506283,3.00594,1791.4,1791.2,3.62920016]
[1745619506899,3.00594,1791.4,1791.3,0.751]
[1745619507208,3.00594,1791.4,1791.2,3.62920016]
[1745619507412,3.00594,1791.4,1791.3,0.36292002]
[1745619509881,3.00594,1791.4,1791.3,1.11392002]
[1745619510640,3.00594,1791.4,1791.3,9.69645784]
[1745619510792,3.00594,1791.4,1791.3,15.19747259]
[1745619511003,3.00594,1791.4,1791.3,15.691658]
[1745619511514,3.00594,1791.4,1791.3,15.06245784]
[1745619511893,3.00594,1791.4,1791.3,15.691658]
[1745619515486,3.00594,1791.4,1791.3,16.43594727]
[1745619515891,0.05,1791.9,1791.8,6.37388002]
[1745619516218,0.05,1791.9,1791.8,10.05887542]
[1745619517025,0.05,1791.9,1791.8,11.23807558]
[1745619517220,0.8234,1792.7,1792.4,8.57908162]
[1745619517519,0.8234,1792.7,1792.5,0.62920016]
[1745619519312,0.8234,1792.7,1792.5,1.22964263]
[1745619519827,0.05,1792.9,1792.6,9.37799883]
[1745619520013,0.05,1792.9,1792.8,0.62920016]
[1745619523127,0.05,1792.9,1792.6,9.65920016]
[1745619524062,0.05,1792.9,1792.8,3.0]
[1745619524263,0.8732,1792.9,1792.7,3.0]
[1745619524553,0.8732,1792.9,1792.4,0.62920016]
[1745619524709,1.44162,1792.9,1792.4,0.68498307]
[1745619525028,0.8732,1792.9,1792.6,0.62920016]
[1745619526243,0.8732,1792.9,1792.6,0.68498018]
[1745619526449,0.8732,1792.9,1792.6,0.62920016]
[1745619528642,0.8732,1792.9,1792.8,0.62920016]
[1745619528843,0.05,1792.9,1792.8,0.62920016]
[1745619529024,0.05,1792.9,1792.8,4.30568603]
[1745619529346,0.05,1792.9,1792.8,4.24991677]
[1745619529937,0.05,1792.9,1792.8,4.30568604]
[1745619530137,0.05,1792.9,1792.8,9.88355306]
[1745619531147,0.05,1792.9,1792.8,4.30568604]
[1745619531663,0.05,1792.9,1792.8,4.24991677]
[1745619531871,0.05,1792.9,1792.8,1.24991677]
[1745619532361,0.05,1792.9,1792.8,0.62920016]
[1745619533435,0.05,1792.9,1792.8,3.62920016]
[1745619534859,0.05,1792.9,1792.8,6.62920016]
[1745619535760,0.05,1792.9,1792.8,6.0]
[1745619536131,0.8187,1792.9,1792.8,3.0]
[1745619537433,0.8187,1792.9,1792.4,6.03]
[1745619537630,0.8187,1792.9,1792.3,0.62920016]
[1745619537873,0.7687,1792.8,1792.3,0.62920016]
[1745619538076,0.7687,1792.8,1792.3,0.99212018]
[1745619538231,0.7687,1792.8,1792.3,0.62920016]
[1745619539250,0.7687,1792.8,1792.4,3.0]
[1745619540080,0.81870016,1792.8,1792.4,3.0]
[1745619540437,0.7687,1792.8,1792.4,3.0]
[1745619541947,0.8244,1792.6,1792.4,3.0]
[1745619542249,0.8244,1792.6,1792.4,3.36292002]
[1745619544167,0.8244,1792.8,1792.4,4.13532002]
[1745619544473,0.8244,1792.8,1792.5,3.62920016]
[1745619545270,0.05,1792.9,1792.5,3.68497875]
[1745619545468,0.05,1792.9,1792.5,3.62920016]
[1745619545775,0.05,1792.9,1792.5,4.40565218]
[1745619546343,0.05,1792.9,1792.5,4.46143094]
[1745619546878,0.05,1792.9,1792.5,4.40565218]
[1745619549378,0.05,1792.9,1792.4,4.13532002]
[1745619549379,0.7752,1792.8,1792.4,3.0]
[1745619556103,0.05,1792.9,1792.5,1.43780016]
[1745619556673,0.05,1792.9,1792.5,0.62920016]
[1745619562220,0.8152,1792.8,1792.5,0.62920016]
[1745619564197,0.8152,1792.8,1792.5,0.99212018]
[1745619565736,0.8152,1792.8,1792.5,0.62920016]
[1745619566364,0.8152,1792.8,1792.4,3.0]
[1745619566669,0.86520016,1792.8,1792.4,3.0]
[1745619569030,0.8152,1792.8,1792.4,3.62920016]
[1745619569227,0.05,1792.9,1792.5,0.7546]
[1745619569529,0.05,1792.9,1792.6,0.62920016]
[1745619582160,0.05,1792.9,1792.8,0.62920016]
[1745619582366,0.05,1792.9,1792.8,1.43780016]
[1745619583272,0.05,1792.9,1792.8,9.38646702]
[1745619583471,0.05,1792.9,1792.8,15.41646702]
[1745619583638,0.05,1792.9,1792.8,15.96646702]
[1745619585162,0.05,1792.9,1792.8,16.3887596]
[1745619587173,0.05,1792.9,1792.8,15.8387596]
[1745619591177,0.05,1792.9,1792.8,16.1887596]
[1745619598386,0.05,1792.9,1792.8,15.6387596]
[1745619600778,0.05,1792.9,1792.8,10.06089258]
[1745619601116,0.05,1792.9,1792.8,18.6387596]
[1745619603990,0.05,1792.9,1792.8,23.9927596]
[1745619607970,0.05,1792.9,1792.8,25.42443524]
[1745619608181,0.0665169,1793.0,1792.9,11.16783155]
[1745619608506,0.0665169,1793.0,1792.9,11.8527831]
[1745619608705,0.0665169,1793.0,1792.9,11.79703171]
[1745619609989,0.7734,1793.8,1793.3,1.1586]
[1745619610306,0.7734,1793.8,1793.6,3.0]
[1745619614871,0.7734,1793.8,1793.5,0.62920016]
[1745619615100,0.7734,1793.8,1793.4,6.03]
[1745619616306,0.7734,1793.8,1793.1,0.62920016]
[1745619616605,0.82340016,1793.8,1793.0,3.0]
[1745619623490,0.82340016,1793.8,1793.1,0.68496341]
[1745619623693,0.7734,1793.8,1793.1,0.68496341]
[1745619624001,0.7734,1793.8,1793.1,0.62920016]
[1745619626531,0.7634,1793.6,1793.0,3.0]
[1745619626693,0.7634,1793.4,1792.8,8.43020016]
[1745619626896,0.7634,1793.4,1792.8,3.62920016]
[1745619627102,0.7634,1793.2,1792.8,3.0]
[1745619628192,0.7634,1793.2,1792.9,0.0557728]
[1745619628388,0.7634,1793.2,1793.0,0.62920016]
[1745619637229,0.7634,1793.2,1792.8,3.62920016]
[1745619645850,0.7634,1793.2,1792.8,3.68496761]
[1745619647027,0.7634,1793.2,1792.8,3.62920016]
[1745619647230,0.7634,1793.2,1792.8,4.77232018]
[1745619650338,0.7634,1793.2,1793.0,0.62920016]
[1745619652747,0.7634,1793.2,1792.9,3.0]
[1745619654152,0.7634,1793.2,1792.9,3.05576603]
[1745619654836,0.8103,1793.5,1793.0,1.23780016]
[1745619655150,0.8103,1793.5,1793.2,0.62920016]
[1745619656947,0.8103,1793.5,1793.2,6.20581385]
[1745619657165,0.8103,1793.5,1793.2,0.62920016]
[1745619658661,0.8103,1793.5,1793.3,0.05575553]
[1745619658858,0.8103,1793.5,1793.3,0.68189911]
[1745619659246,0.8103,1793.5,1793.4,0.62920016]
[1745619659545,0.8036,1793.7,1793.4,0.62920016]
[1745619660437,0.8536,1793.9,1793.6,3.62920016]
[1745619661145,0.8536,1793.9,1793.6,0.62920016]
[1745619661456,0.8536,1793.9,1793.7,3.0]
[1745619661958,0.8536,1793.9,1793.6,0.62920016]
[1745619662354,0.8536,1793.9,1793.6,3.62920016]
[1745619662539,0.8536,1793.9,1793.7,0.36292002]
[1745619663534,0.8036,1793.9,1793.7,0.36292002]
[1745619664456,0.62920016,1794.5,1793.7,0.36292002]
[1745619664650,0.8036,1794.2,1793.7,0.36292002]
[1745619664839,0.7536,1794.2,1793.6,0.62920016]
[1745619666357,0.7036,1794.2,1793.7,3.0]
[1745619666534,0.7036,1794.2,1793.6,0.62920016]
[1745619668261,0.75360016,1794.2,1793.5,3.0]
[1745619668468,0.7036,1794.2,1793.5,3.0]
[1745619670870,0.7036,1794.2,1793.5,4.5644886]
[1745619671372,0.7036,1794.2,1793.6,3.0]
[1745619671749,0.7036,1794.2,1793.5,10.84866513]
[1745619671960,0.7036,1794.2,1793.5,5.2730886]
[1745619672580,0.7036,1794.2,1793.5,10.84872504]
[1745619672783,0.7036,1794.2,1793.6,1.04246862]
[1745619674070,0.7036,1794.2,1793.5,3.7086]
[1745619674481,0.7036,1794.2,1793.5,3.0]
[1745619675347,0.8304,1794.0,1793.5,3.0]
[1745619676485,0.8304,1794.0,1793.6,3.0]
[1745619676862,0.8046,1794.0,1793.6,3.0]
[1745619677056,0.85460016,1794.0,1793.6,3.0]
[1745619677257,0.8046,1793.8,1793.6,3.0]
[1745619678279,0.8046,1793.7,1793.6,3.0]
[1745619678689,0.8046,1793.7,1793.2,3.0]
[1745619679978,0.8046,1793.7,1793.1,3.0]
[1745619681386,0.8046,1793.7,1793.2,3.0]
[1745619684191,0.8046,1793.7,1793.2,3.62920016]
[1745619684392,0.8046,1793.7,1793.3,0.36292002]
[1745619686392,0.8046,1793.7,1793.4,0.62920016]
[1745619691891,0.8046,1793.7,1793.4,0.68495158]
[1745619692089,0.8046,1793.7,1793.4,1.39355158]
[1745619692296,0.8046,1793.7,1793.4,1.33780016]
[1745619692590,0.8252,1793.9,1793.4,1.33780016]
[1745619694276,0.8252,1793.9,1793.4,7.36780016]
[1745619694463,0.8252,1793.9,1793.5,0.73678002]
[1745619694993,0.8252,1793.9,1793.6,0.62920016]
[1745619695199,0.8252,1794.0,1793.6,0.62920016]
[1745619695397,0.8252,1794.0,1793.6,11.15042478]
[1745619695571,0.8252,1794.4,1793.8,0.62920016]
[1745619695898,0.8068,1794.3,1793.8,0.62920016]
[1745619696267,0.8068,1794.3,1794.0,0.62920016]
[1745619706171,0.8068,1794.3,1793.9,3.0]
[1745619706374,0.8068,1794.3,1793.8,6.03]
[1745619708313,0.8068,1794.3,1793.8,6.7943408]
[1745619708608,0.8068,1794.3,1793.9,0.67943408]
[1745619712107,0.8068,1794.3,1793.7,3.62920016]
[1745619712888,0.8068,1794.3,1793.7,3.6849409]
[1745619713212,0.8068,1794.3,1793.7,3.62920016]
[1745619715628,0.8068,1794.3,1793.7,3.0]
[1745619716718,0.8068,1794.3,1793.8,3.0]
[1745619717886,0.05000016,1794.2,1793.8,3.0]
[1745619718087,0.7937,1794.1,1793.8,3.0]
[1745619718818,0.7937,1794.0,1793.8,3.0]
[1745619722806,1.40237016,1794.0,1793.8,3.0]
[1745619723008,0.8248,1793.9,1793.5,6.03]
[1745619723704,0.8248,1793.9,1793.4,0.62920016]
[1745619726935,0.8248,1793.9,1793.5,3.0]
[1745619728931,0.05000016,1793.8,1793.5,3.0]
[1745619729099,0.8047,1793.7,1793.5,3.0]
[1745619733721,0.8047,1793.7,1793.5,3.3]
[1745619735545,0.8047,1794.0,1793.5,3.3]
[1745619735827,0.8047,1794.0,1793.6,0.62920016]
[1745619737239,6.11,1794.4,1793.8,0.62920016]
[1745619737240,0.815,1794.2,1793.8,0.62920016]
[1745619738117,0.815,1794.2,1793.7,0.62920016]
[1745619738705,0.815,1794.2,1793.7,1.29512018]
[1745619740131,0.815,1794.2,1793.8,3.0]
[1745619740428,0.815,1794.2,1793.7,1.29512018]
[1745619741033,0.815,1794.2,1793.7,2.00372018]
[1745619744505,0.815,1794.2,1793.8,3.0]
[1745619744706,0.815,1794.2,1793.8,0.50037202]
[1745619745015,0.815,1794.2,1793.7,2.00372018]
[1745619748359,4.791,1794.4,1793.7,6.92575895]
[1745619748525,0.7931,1794.4,1793.9,0.62920016]
[1745619748724,0.7931,1794.6,1794.1,1.33780016]
[1745619749556,5.1940081,1794.8,1794.3,0.62920016]
[1745619749726,5.83381055,1794.8,1794.3,0.62920016]
[1745619750658,0.7931,1794.7,1794.3,0.62920016]
[1745619752462,5.1940081,1794.8,1794.3,0.62920016]
[1745619753654,0.7931,1794.7,1794.2,0.7086]
[1745619755160,0.7931,1794.7,1794.3,3.0]
[1745619755364,0.84310016,1794.7,1794.3,3.0]
[1745619755662,0.7931,1794.7,1794.3,3.37086]
[1745619757038,5.1940081,1794.8,1794.4,0.7086]
[1745619760764,0.4040081,1794.8,1794.4,0.7086]
[1745619762990,0.4040081,1794.8,1794.4,6.28148059]
[1745619763137,0.4040081,1794.8,1794.6,0.7086]
[1745619763857,0.4040081,1794.8,1794.4,0.7086]
[1745619764281,0.4040081,1794.8,1794.4,1.14238002]
[1745619764632,0.4040081,1794.8,1794.5,3.0]
[1745619769474,0.4040081,1794.8,1794.6,0.7086]
[1745619771671,0.4040081,1794.8,1794.7,1.0]
[1745619778053,0.4040081,1794.8,1794.4,4.14238002]
[1745619780480,0.4040081,1794.8,1794.5,0.414238]
[1745619781181,0.4040081,1794.8,1794.4,4.14238002]
[1745619781683,0.4040081,1794.8,1794.5,3.0]
[1745619782681,0.4040081,1794.8,1794.5,6.25739096]
[1745619782876,0.4040081,1794.8,1794.5,6.20167118]
[1745619783189,0.4040081,1794.8,1794.7,6.20116204]
[1745619783477,0.4040081,1794.8,1794.7,2.59156188]
[1745619783882,0.4040081,1794.8,1794.7,1.33780016]
[1745619786579,0.4040081,1794.8,1794.7,3.0]
[1745619787492,0.4040081,1794.8,1794.4,3.0]
[1745619787786,0.8302,1794.7,1794.3,7.36780016]
[1745619792097,0.8302,1794.7,1794.4,3.0]
[1745619793195,0.8302,1794.7,1794.4,4.03678002]
[1745619793599,0.8302,1794.7,1794.5,0.62920016]
[1745619793906,1.1637081,1794.8,1794.5,0.62920016]
[1745619794395,0.4040081,1794.8,1794.5,0.62920016]
[1745619796089,0.4040081,1794.8,1794.5,0.68491764]
[1745619796343,0.4040081,1794.8,1794.5,1.33780016]
[1745619796611,0.4040081,1794.8,1794.5,6.91037194]
[1745619796767,0.4040081,1794.8,1794.6,0.69103719]
[1745619797101,0.4040081,1794.8,1794.7,0.62920016]
[1745619798015,0.4040081,1794.8,1794.7,1.33780016]
[1745619800069,0.4040081,1794.8,1794.7,0.62920016]
[1745619801479,0.4040081,1794.8,1794.7,1.33780016]
[1745619801680,0.4040081,1794.8,1794.7,0.62920016]
[1745619802081,0.4040081,1794.8,1794.7,1.06298018]
[1745619804955,0.4040081,1794.8,1794.7,1.11869031]
[1745619805658,0.4040081,1794.8,1794.7,1.06298018]
[1745619806843,0.4040081,1794.8,1794.7,1.11869042]
[1745619807755,0.4040081,1794.8,1794.7,9.6906523]
[1745619808129,0.4040081,1794.8,1794.7,9.63494206]
[1745619814369,0.4040081,1794.8,1794.7,10.39924994]
[1745619815570,0.4040081,1794.8,1794.7,10.34354206]
[1745619817387,0.4040081,1794.8,1794.7,10.80158018]
[1745619817771,0.4040081,1794.8,1794.7,16.92354206]
[1745619825693,0.4040081,1794.8,1794.7,10.09298018]
[1745619825883,1.1664081,1794.8,1794.7,9.03]
[1745619826279,1.1664081,1794.8,1794.7,6.03]
[1745619830107,1.1664081,1794.8,1794.5,5.41120016]
[1745619830402,1.1164081,1794.8,1794.5,5.41120016]
[1745619833945,1.1164081,1794.8,1794.5,7.15532018]
[1745619837833,1.1164081,1794.8,1794.6,1.19447735]
[1745619842114,1.1164081,1794.8,1794.5,5.93859737]
[1745619844195,1.1164081,1794.8,1794.6,1.19447735]
[1745619852499,1.1164081,1794.8,1794.7,1.19447735]
[1745619853029,0.3540081,1794.8,1794.7,1.19447735]
[1745619853525,0.3540081,1794.8,1794.7,1.87115229]
[1745619853712,0.3540081,1794.8,1794.7,8.15171417]
[1745619854030,0.3540081,1794.8,1794.7,11.15171417]
[1745619854323,0.3540081,1794.8,1794.7,4.87115229]
[1745619858315,0.3540081,1794.8,1794.7,4.19447735]
[1745619880668,0.3540081,1794.8,1794.7,3.0]
[1745619880965,1.1446081,1794.8,1794.7,3.0]
[1745619881164,0.7906,1794.7,1794.4,6.03]
[1745619881372,0.7906,1794.7,1794.2,1.19447735]
[1745619882248,0.7906,1794.7,1794.3,1.19447735]
[1745619884739,0.7906,1794.7,1794.4,1.19447735]
[1745619884939,0.7906,1794.7,1794.3,1.19447735]
[1745619885342,0.7906,1794.7,1794.4,1.19447735]
[1745619886174,0.7906,1794.7,1794.3,1.19447735]
[1745619886374,0.7906,1794.7,1794.5,3.0]
[1745619886541,0.7906,1794.7,1794.3,1.25020373]
[1745619886741,0.7906,1794.7,1794.3,1.19447735]
[1745619891385,0.7906,1794.7,1794.4,3.0]
[1745619894367,0.7906,1794.7,1794.4,4.19447735]
[1745619899011,0.7906,1794.7,1794.4,4.61392509]
[1745619903787,0.3540081,1794.8,1794.4,4.66964616]
[1745619904091,0.3540081,1794.8,1794.6,1.19447735]
[1745619904996,0.3540081,1794.8,1794.5,8.57237333]
[1745619904997,0.3540081,1794.8,1794.7,1.19447735]
[1745619908015,0.3540081,1794.8,1794.7,6.76643923]
[1745619908219,0.3540081,1794.8,1794.7,8.07114446]
[1745619913395,0.3540081,1794.8,1794.7,2.49918258]
[1745619915326,0.3540081,1794.8,1794.7,8.07114446]
[1745619915541,0.3540081,1794.8,1794.7,2.49918258]
[1745619916743,0.3540081,1794.8,1794.7,8.07114446]
[1745619922843,0.3540081,1794.8,1794.7,2.49918258]
[1745619923843,0.3540081,1794.8,1794.7,11.83545283]
[1745619924081,0.3540081,1794.8,1794.7,11.77974446]
[1745619928749,0.3540081,1794.8,1794.7,17.80974446]
[1745619931067,0.3540081,1794.8,1794.7,11.52918258]
[1745619933973,0.3540081,1794.8,1794.7,17.10114446]
[1745619945863,0.3540081,1794.8,1794.7,17.80974446]
[1745619948399,0.3540081,1794.8,1794.7,18.35974446]
[1745619950793,0.3540081,1794.8,1794.7,17.10114446]
[1745619953300,0.3540081,1794.8,1794.7,20.10114446]
[1745619960986,0.3540081,1794.8,1794.7,14.52918258]
[1745619961186,0.3540081,1794.8,1794.7,13.22447735]
[1745619962101,0.3540081,1794.8,1794.7,18.79643923]
[1745619962607,0.3540081,1794.8,1794.7,13.22447735]
[1745619963777,1.1108081,1794.8,1794.7,9.03]
[1745619967011,1.1108081,1794.8,1794.7,3.0]
[1745619970796,1.1108081,1794.8,1794.7,4.19447735]
[1745619971003,0.3540081,1794.8,1794.7,10.74865649]
[1745619971795,0.3540081,1794.8,1794.7,14.92212162]
[1745619971991,0.3540081,1794.8,1794.7,14.86641042]
[1745619972198,0.3540081,1794.8,1794.7,21.44641042]
[1745619980952,0.3540081,1794.8,1794.7,22.64088777]
[1745619982537,0.05,1794.9,1794.8,9.28025143]
[1745619982743,0.05,1794.9,1794.8,13.34964194]
[1745619983041,0.05,1794.9,1794.8,13.29394609]
[1745619986437,0.05,1794.9,1794.8,19.87394609]
[1745619997064,0.05,1794.9,1794.8,20.57054489]
[1745619998527,0.7975,1795.4,1795.3,8.5700997]
[1745619998728,0.7975,1795.4,1795.3,9.76457705]
[1745619999639,0.7975,1795.4,1795.3,10.74679431]
[1745620000024,0.7975,1795.4,1795.3,10.80248618]
[1745620001531,0.05,1795.9,1795.3,10.80248618]
[1745620001733,0.7593,1795.8,1795.7,1.19447735]
[1745620001951,0.7593,1795.8,1795.6,6.76358709]
[1745620002159,0.7593,1795.8,1795.7,0.67635871]
[1745620002357,0.7593,1795.8,1795.6,1.19447735]
[1745620003475,0.7593,1795.8,1795.6,6.76337833]
[1745620004152,0.7593,1795.8,1795.6,12.33236357]
[1745620004357,0.7593,1795.8,1795.6,6.76337833]
[1745620004865,0.7593,1795.8,1795.6,12.33233152]
[1745620005066,0.7593,1795.8,1795.7,1.23323315]
[1745620007280,0.7593,1795.8,1795.7,2.23323315]
[1745620009279,0.7593,1795.8,1795.7,7.80209209]
[1745620009571,0.7593,1795.8,1795.7,2.23323315]
[1745620010079,0.7593,1795.8,1795.7,8.99656944]
[1745620016896,0.7593,1795.8,1795.7,3.4277105]
[1745620017281,0.7593,1795.8,1795.7,1.0]
[1745620017490,0.7593,1795.8,1795.4,3.0]
[1745620017786,0.7593,1795.8,1795.4,9.76424049]
[1745620019200,0.7593,1795.8,1795.5,1.19447735]
[1745620020398,0.7593,1795.8,1795.6,1.19447735]
[1745620023070,0.05,1795.9,1795.6,1.19447735]
[1745620023278,0.05,1795.9,1795.6,7.4399204]
[1745620024398,0.7848,1795.8,1795.6,1.87087244]
[1745620026601,0.7848,1795.8,1795.6,7.49554773]
[1745620026802,0.05,1795.9,1795.7,5.56885894]
[1745620027105,0.05,1795.9,1795.8,6.76302618]
[1745620027409,0.05,1795.9,1795.8,7.99621469]
[1745620028014,0.05,1795.9,1795.8,2.42766586]
[1745620028316,0.05,1795.9,1795.8,5.42766586]
[1745620029681,0.05,1795.9,1795.8,4.23318851]
[1745620030784,0.8348,1795.9,1795.8,3.0]
[1745620035909,0.8348,1795.9,1795.5,3.0]
[1745620036987,0.8348,1795.9,1795.4,3.0]
[1745620039008,0.8348,1795.9,1795.3,6.03]
[1745620040920,0.8348,1795.9,1795.4,3.0]
[1745620042682,0.7649,1795.7,1795.4,3.0]
[1745620066528,0.7649,1795.7,1795.4,3.05569518]
[1745620066855,0.8181,1795.8,1795.4,4.13352463]
[1745620067347,0.8181,1795.8,1795.4,3.42492463]
[1745620071362,0.8181,1795.8,1795.4,3.0]
[1745620079955,0.05,1795.9,1795.4,3.0]
[1745620079956,0.8281,1795.6,1795.4,3.0]
[1745620087947,0.8281,1795.6,1795.1,1.19355115]
[1745620089545,0.8281,1795.6,1795.2,3.0]
[1745620097810,0.8281,1795.6,1795.3,1.19355115]
[1745620098095,0.8281,1795.6,1795.3,0.49578506]
[1745620110192,0.8281,1795.6,1795.2,3.7086]
[1745620110874,0.8281,1795.6,1795.2,3.0]
[1745620117477,0.8281,1795.6,1795.2,3.7086]
[1745620117679,0.8281,1795.6,1795.2,4.90215115]
[1745620118605,0.8281,1795.6,1795.2,4.95784636]
[1745620119121,0.8281,1795.6,1795.3,0.49578464]